bitfinex-derivatives/quotes_BNBF0:USTF0_20250510
["timestamp","ask_amount","ask_price","bid_price","bid_amount"]
[1746854121571,0.2504584,659.19,658.06,0.73292365]
[1746854121871,0.2504584,659.18,658.06,0.73292365]
[1746854122272,0.2504584,659.17,658.06,0.73292365]
[1746854122774,0.2504584,659.16,658.06,0.73292365]
[1746854123067,0.2504584,659.15,658.06,0.73292365]
[1746854123473,0.2504584,659.14,658.06,0.73292365]
[1746854123773,0.51475149,659.14,658.06,0.73292365]
[1746854123972,0.2504584,659.13,658.06,0.73292365]
[1746854124168,0.2504584,659.12,658.06,0.73292365]
[1746854124375,1.93745811,659.05,658.06,0.73292365]
[1746854124873,0.2504584,659.04,658.06,0.73292365]
[1746854125174,1.93745811,659.05,658.06,0.73292365]
[1746854125175,0.2504584,659.03,658.06,0.73292365]
[1746854125474,0.2504584,659.02,658.06,0.73292365]
[1746854125967,0.2504584,659.01,658.06,0.73292365]
[1746854126573,0.2504584,659.0,658.06,0.73292365]
[1746854126875,1.93745811,658.92,658.06,0.73292365]
[1746854127775,0.2504584,658.91,658.06,0.73292365]
[1746854128076,0.2504584,658.9,658.06,0.73292365]
[1746854128571,0.2504584,658.89,658.06,0.73292365]
[1746854128772,0.2504584,658.88,658.06,0.73292365]
[1746854128977,0.51483883,658.88,658.06,0.73292365]
[1746854129176,0.2504584,658.87,658.06,0.73292365]
[1746854129578,0.2504584,658.86,658.06,0.73292365]
[1746854129973,0.2504584,658.85,658.06,0.73292365]
[1746854130477,0.2504584,658.87,658.06,0.73292365]
[1746854131977,0.2504584,659.0,658.06,0.73292365]
[1746854132177,0.26439349,658.86,658.06,0.73292365]
[1746854132478,0.2504584,658.85,658.06,0.73292365]
[1746854132880,0.2504584,658.85,658.06,1.14092365]
[1746854134578,0.2504584,659.26,658.06,1.14092365]
[1746854134972,0.26434931,658.84,658.06,1.14092365]
[1746854135177,0.2504584,658.83,658.06,1.14092365]
[1746854135879,0.26433425,658.82,658.06,1.14092365]
[1746854136378,0.2504584,658.81,658.06,1.14092365]
[1746854136981,0.2504584,658.8,658.06,1.14092365]
[1746854137480,0.2504584,658.79,658.06,1.14092365]
[1746854137682,0.2504584,658.78,658.06,1.14092365]
[1746854137980,0.2504584,658.77,658.06,1.14092365]
[1746854138383,0.51479265,658.76,658.06,1.14092365]
[1746854138683,0.26433425,658.76,658.06,1.14092365]
[1746854139083,0.25019957,658.75,658.06,1.14092365]
[1746854139383,0.25019957,658.74,658.06,1.14092365]
[1746854139782,0.25019957,658.73,658.06,1.14092365]
[1746854140483,0.25019957,658.72,658.06,1.14092365]
[1746854140677,0.25019957,658.71,658.06,1.14092365]
[1746854140883,0.51458302,658.71,658.06,1.14092365]
[1746854141079,0.25019957,658.7,658.06,1.14092365]
[1746854141384,0.25019957,658.69,658.06,1.14092365]
[1746854141679,0.25019957,658.68,658.06,1.14092365]
[1746854141885,1.93745811,658.6,658.06,1.14092365]
[1746854142284,0.25019957,658.59,658.06,1.14092365]
[1746854142584,0.25019957,658.58,658.06,1.14092365]
[1746854143085,0.25019957,658.57,658.06,0.837]
[1746854143783,0.25019957,658.56,658.06,0.837]
[1746854143980,1.93745811,658.65,658.06,0.837]
[1746854143981,0.25019957,658.55,658.06,0.837]
[1746854144379,0.25019957,658.54,658.06,0.837]
[1746854144780,0.25019957,658.53,658.06,0.837]
[1746854145184,0.25019957,658.52,658.06,0.837]
[1746854145585,0.25019957,658.64,658.06,0.837]
[1746854145988,0.25019957,658.63,658.06,0.837]
[1746854146489,0.25019957,658.62,658.06,0.837]
[1746854146688,0.25019957,658.61,658.06,0.837]
[1746854146988,0.25019957,658.6,658.06,0.837]
[1746854147191,0.25019957,658.6,657.14,0.26441057]
[1746854147385,0.25019957,658.59,657.14,0.26441057]
[1746854147688,0.25019957,658.59,656.26,0.95783971]
[1746854147886,0.25019957,658.58,656.27,1.28226032]
[1746854148084,0.25019957,658.57,656.76,0.26466797]
[1746854148284,0.25019957,658.57,656.77,0.97787091]
[1746854148486,0.25019957,658.56,656.78,0.97787091]
[1746854148684,0.25019957,658.56,656.79,1.28226032]
[1746854148889,0.25019957,658.6,656.8,0.97787091]
[1746854149085,0.25019957,658.6,656.81,0.97787091]
[1746854149288,0.25019957,658.6,656.82,0.97787091]
[1746854149489,0.25019957,658.6,656.83,0.97787091]
[1746854149692,0.25019957,658.6,656.84,0.97787091]
[1746854149986,0.25019957,658.59,656.85,1.28226032]
[1746854150188,0.25019957,658.59,656.86,0.97787091]
[1746854150390,0.25019957,658.58,656.87,0.97787091]
[1746854150688,0.25019957,658.58,656.88,0.97787091]
[1746854150885,0.25019957,658.57,656.89,1.28226032]
[1746854151087,0.25019957,658.57,656.9,0.97787091]
[1746854151393,0.26441057,658.61,656.89,0.30438941]
[1746854151394,0.25019957,658.56,656.91,1.46887091]
[1746854151592,0.25019957,658.56,656.92,0.97787091]
[1746854151793,0.25019957,658.6,656.93,0.97787091]
[1746854151993,0.25019957,658.6,656.94,0.97787091]
[1746854152289,0.25019957,658.6,656.95,0.97787091]
[1746854152493,0.25019957,658.6,656.96,0.97787091]
[1746854152694,0.25019957,659.0,656.97,1.28226032]
[1746854152894,0.25019957,659.0,656.98,0.97787091]
[1746854153195,0.25019957,659.0,656.99,0.97787091]
[1746854153390,0.25019957,659.0,657.0,0.97787091]
[1746854153593,0.51473576,658.99,657.01,1.28226032]
[1746854153793,0.25019957,658.98,657.02,0.97787091]
[1746854153995,0.25019957,658.98,657.03,0.97787091]
[1746854154193,0.25019957,658.97,657.04,0.97787091]
[1746854154393,0.25019957,658.96,657.05,1.28226032]
[1746854154590,0.25019957,658.96,657.05,0.30438941]
[1746854154794,0.25019957,658.95,657.06,0.30438941]
[1746854155096,0.25019957,658.94,657.06,0.30438941]
[1746854155397,0.25019957,658.93,657.06,0.30438941]
[1746854155696,0.25019957,658.92,657.07,0.30438941]
[1746854155895,0.25019957,658.92,657.08,0.30438941]
[1746854156197,0.26451005,658.91,657.09,0.30438941]
[1746854156497,0.51470962,658.91,657.09,0.30438941]
[1746854156801,0.25019957,658.9,657.09,0.30438941]
[1746854157299,0.25019957,658.89,657.1,0.30438941]
[1746854157599,0.25019957,658.88,657.1,0.30438941]
[1746854157899,0.25019957,658.88,657.11,0.30438941]
[1746854158200,0.25019957,658.87,657.11,0.30438941]
[1746854158401,0.25019957,658.87,657.12,0.30438941]
[1746854158803,0.25019957,658.86,657.12,0.30438941]
[1746854159100,0.25019957,658.85,657.12,0.30438941]
[1746854159401,0.25019957,658.85,657.13,0.30438941]
[1746854159701,0.25019957,659.24,657.13,0.30438941]
[1746854159902,0.25019957,659.23,657.13,0.30438941]
[1746854160202,0.25019957,659.22,657.14,0.30438941]
[1746854160403,0.51470359,659.22,657.14,0.30438941]
[1746854160702,0.25019957,659.21,656.91,0.75550402]
[1746854160902,0.25019957,659.2,656.92,0.97494565]
[1746854161202,0.25019957,659.19,656.93,1.2792283]
[1746854161404,0.25019957,659.19,656.94,0.97494565]
[1746854161597,0.25019957,659.19,656.95,1.2792283]
[1746854161798,0.25019957,659.19,656.96,0.97494565]
[1746854162000,0.25019957,659.19,656.97,0.97494565]
[1746854162198,0.26449899,659.18,656.98,1.2792283]
[1746854162502,0.51469856,659.18,656.99,0.97494565]
[1746854162703,0.51469856,659.18,657.0,1.2792283]
[1746854162903,0.25019957,659.17,657.01,0.97494565]
[1746854163100,0.25019957,659.16,657.02,0.97494565]
[1746854163304,0.25019957,659.16,657.03,0.97494565]
[1746854163504,0.25019957,659.15,657.04,1.2792283]
[1746854163707,0.25019957,659.15,657.05,0.97494565]
[1746854163899,0.25019957,659.14,657.06,1.2792283]
[1746854164099,0.25019957,659.13,657.07,0.97494565]
[1746854164299,0.25019957,659.13,657.08,0.97494565]
[1746854164604,0.25019957,659.12,657.09,1.2792283]
[1746854164801,0.25019957,659.12,657.1,0.97494565]
[1746854165006,0.25019957,659.12,657.11,0.30428265]
[1746854165207,0.26447587,659.11,657.11,0.30428265]
[1746854165401,0.51467544,659.11,657.11,0.30428265]
[1746854165601,0.51467544,659.11,657.12,0.30428265]
[1746854165804,0.25019957,659.1,657.12,0.30428265]
[1746854166007,0.25019957,659.09,657.12,0.30428265]
[1746854166403,0.25019957,659.08,657.13,0.30428265]
[1746854166708,0.25019957,659.07,657.13,0.30428265]
[1746854167008,0.26447587,659.11,657.14,0.30428265]
[1746854167308,0.24993502,659.1,657.14,0.30428265]
[1746854167509,0.24993502,659.1,657.15,0.30428265]
[1746854167710,0.24993502,659.09,657.15,0.30428265]
[1746854168011,0.24993502,659.08,657.15,0.30428265]
[1746854168309,0.24993502,659.07,657.16,0.30428265]
[1746854168705,0.24993502,659.06,657.16,0.30428265]
[1746854168910,0.24993502,659.06,657.18,0.30433062]
[1746854169110,0.24993502,659.05,657.18,0.30433062]
[1746854169610,0.24993502,659.04,657.18,0.30433062]
[1746854170010,0.26449497,659.09,657.18,0.30433062]
[1746854170011,0.24993502,659.03,657.18,0.30433062]
[1746854170310,0.24993502,659.02,657.18,0.30433062]
[1746854170609,0.24993502,659.01,657.18,0.30433062]
[1746854171104,0.24993502,659.0,657.18,0.30433062]
[1746854171409,0.24993502,658.99,657.18,0.30433062]
[1746854171808,0.24993502,658.98,657.18,0.30433062]
[1746854172012,0.24993502,658.97,657.18,0.30433062]
[1746854172312,0.26446683,659.02,657.18,0.30433062]
[1746854172712,0.2499561,659.01,657.18,0.30433062]
[1746854173013,0.2499561,659.0,657.18,0.30433062]
[1746854173514,0.2499561,658.99,657.18,0.30433062]
[1746854173713,0.2499561,658.98,657.18,0.30433062]
[1746854174013,0.2499561,658.97,657.18,0.30433062]
[1746854174414,0.2499561,658.98,657.18,0.30433062]
[1746854174817,0.2499561,658.98,657.19,0.30424821]
[1746854175411,0.2499561,658.98,657.2,0.30424821]
[1746854175714,0.2499561,658.98,657.21,0.30424821]
[1746854176214,0.2499561,658.98,657.22,0.30424821]
[1746854176613,0.2499561,658.97,657.22,0.30424821]
[1746854176914,0.51441791,658.97,657.24,0.30430284]
[1746854177116,0.2499561,658.96,657.24,0.30430284]
[1746854178016,0.2499561,658.95,657.24,0.30430284]
[1746854178317,0.2499561,658.94,657.24,0.30430284]
[1746854178614,0.2499561,658.93,657.24,0.30430284]
[1746854178919,0.2499561,658.92,657.24,0.30430284]
[1746854179517,0.2499561,658.91,657.24,0.30430284]
[1746854179716,0.51444102,658.91,657.24,0.30430284]
[1746854179919,0.2499561,658.9,657.24,0.30430284]
[1746854180218,0.2499561,658.89,657.24,0.30430284]
[1746854180718,1.93745811,659.21,657.24,0.30430284]
[1746854180719,0.2499561,658.88,657.24,0.30430284]
[1746854181119,0.2499561,658.87,657.24,0.30430284]
[1746854181617,0.2499561,658.86,657.24,0.30430284]
[1746854181817,0.2499561,658.85,657.24,0.30430284]
[1746854182313,0.2499561,658.84,657.25,0.30422699]
[1746854182517,0.2499561,658.83,657.25,0.30422699]
[1746854182719,0.2499561,658.83,657.27,0.30428895]
[1746854182917,0.2499561,658.82,657.27,0.30428895]
[1746854183219,0.2499561,658.82,657.28,0.30422699]
[1746854183519,0.2499561,659.11,657.28,0.30422699]
[1746854183718,0.2499561,659.11,657.29,0.30422699]
[1746854184018,0.2499561,659.1,657.29,0.30422699]
[1746854184219,0.2499561,659.1,657.3,0.30422699]
[1746854184420,0.2499561,659.1,657.31,0.9781661]
[1746854184617,0.2499561,659.11,657.32,0.9781661]
[1746854184819,0.2499561,659.11,657.33,1.28239309]
[1746854185017,0.2499561,659.11,657.34,0.9781661]
[1746854185216,0.2499561,659.11,657.35,1.28239309]
[1746854185415,0.2499561,659.11,657.36,0.9781661]
[1746854185619,0.2499561,659.11,657.37,1.28239309]
[1746854185816,0.2499561,659.11,657.38,0.9781661]
[1746854185817,1.93745811,659.08,657.38,0.9781661]
[1746854186020,1.93745811,659.08,657.39,0.9781661]
[1746854186215,1.93745811,659.08,657.4,0.9781661]
[1746854186418,1.93745811,659.08,657.41,0.9781661]
[1746854186618,0.2499561,659.07,657.42,0.9781661]
[1746854186917,0.2499561,659.07,657.44,0.30421027]
[1746854187123,0.2499561,659.07,657.45,0.30422699]
[1746854187922,0.2499561,659.07,657.46,0.30422699]
[1746854188322,0.2499561,659.07,657.47,0.30422699]
[1746854188623,0.2499561,659.07,657.49,0.30418713]
[1746854189524,0.2499561,659.07,657.5,0.30422699]
[1746854189923,0.2499561,659.72,657.52,0.30417325]
[1746854190124,0.3031681,659.7,657.52,0.30417325]
[1746854190617,0.2499561,659.69,657.52,0.30417325]
[1746854190821,0.30318189,659.67,657.52,0.30417325]
[1746854191418,0.2499561,659.66,657.52,0.30417325]
[1746854191920,0.2499561,659.65,657.52,0.30417325]
[1746854192224,0.30318189,659.67,657.52,0.30417325]
[1746854192627,0.25005468,659.66,657.52,0.30417325]
[1746854193022,0.25005468,659.65,657.52,0.30417325]
[1746854193627,0.25005468,659.64,657.52,0.30417325]
[1746854194028,0.25005468,659.63,657.52,0.30417325]
[1746854194431,0.25005468,659.62,657.52,0.30417325]
[1746854194626,0.30321406,659.6,657.52,0.30417325]
[1746854196026,0.25005468,659.59,657.53,0.638]
[1746854196432,1.93745811,659.39,657.53,0.638]
[1746854196727,1.93745811,659.39,657.55,0.30415937]
[1746854196933,0.55336991,659.38,657.55,0.30415937]
[1746854197127,0.55336991,659.38,657.56,0.495]
[1746854197327,0.55336991,659.38,657.58,0.3041455]
[1746854197527,0.55337451,659.37,657.58,0.3041455]
[1746854197732,0.25005468,659.36,657.58,0.3041455]
[1746854198532,0.25005468,659.35,657.58,0.3041455]
[1746854198832,0.25005468,659.34,657.58,0.3041455]
[1746854199132,0.25005468,659.33,657.58,0.3041455]
[1746854199534,0.25005468,659.32,657.58,0.3041455]
[1746854199934,0.25005468,659.31,657.58,0.3041455]
[1746854200230,0.25005468,659.3,657.58,0.3041455]
[1746854200635,0.25005468,659.29,657.58,0.3041455]
[1746854200834,0.51443813,659.29,657.58,0.3041455]
[1746854201334,0.25005468,659.28,657.58,0.3041455]
[1746854201834,0.25005468,659.27,657.58,0.3041455]
[1746854202229,0.25005468,659.26,657.58,0.3041455]
[1746854202729,0.25005468,659.25,657.58,0.3041455]
[1746854203033,0.25005468,659.24,657.58,0.3041455]
[1746854203629,0.25005468,659.23,657.58,0.3041455]
[1746854203831,0.25005468,659.22,657.58,0.3041455]
[1746854204333,0.25005468,659.21,657.58,0.3041455]
[1746854204634,0.25005468,659.2,657.58,0.3041455]
[1746854204937,0.25005468,659.19,657.58,0.3041455]
[1746854205134,2.18751279,659.19,657.58,0.3041455]
[1746854205634,0.25005468,659.18,657.58,0.3041455]
[1746854205931,0.25005468,659.17,657.58,0.3041455]
[1746854206335,0.25005468,659.16,657.58,0.3041455]
[1746854206535,1.93745811,659.14,657.58,0.3041455]
[1746854206931,0.25005468,659.13,657.58,0.3041455]
[1746854207438,0.25005468,659.12,657.58,0.3041455]
[1746854207837,0.25005468,659.11,657.58,0.3041455]
[1746854208434,0.25005468,659.1,657.58,0.3041455]
[1746854208732,1.93745811,659.03,657.58,0.3041455]
[1746854209237,0.25005468,659.02,657.58,0.3041455]
[1746854209436,0.25005468,659.01,657.58,0.3041455]
[1746854209638,0.25005468,659.01,657.59,0.551]
[1746854209937,0.25005468,659.0,657.61,0.30413162]
[1746854210137,0.25005468,658.99,657.61,0.30413162]
[1746854210438,0.25005468,658.98,657.61,0.30413162]
[1746854211039,0.25005468,658.97,657.61,0.30413162]
[1746854211541,0.25005468,658.96,657.61,0.30413162]
[1746854212141,0.25005468,658.95,657.61,0.30413162]
[1746854212440,0.25005468,658.94,657.61,0.30413162]
[1746854212736,0.25005468,658.93,657.61,0.30413162]
[1746854213041,0.25005468,658.92,657.61,0.30413162]
[1746854213343,0.25005468,658.91,657.61,0.30413162]
[1746854213743,0.25005468,658.9,657.61,0.30413162]
[1746854214140,0.25005468,658.89,657.61,0.30413162]
[1746854214444,0.25005468,658.88,657.61,0.30413162]
[1746854214746,0.25005468,658.87,657.61,0.30413162]
[1746854215145,0.25005468,658.99,657.61,0.30413162]
[1746854215647,0.26443367,658.98,657.61,0.30413162]
[1746854215945,0.25005468,658.97,657.61,0.30413162]
[1746854217543,0.26443367,658.98,657.61,0.30413162]
[1746854217848,0.24968361,658.97,657.61,0.30413162]
[1746854218742,0.2643965,658.96,657.61,0.30413162]
[1746854219350,0.24968361,658.95,657.61,0.30413162]
[1746854221753,0.26439751,658.94,657.61,0.30413162]
[1746854222145,0.24968361,658.93,657.61,0.30413162]
[1746854223147,0.26439751,658.94,657.61,0.30413162]
[1746854223547,0.249708,658.93,657.61,0.30413162]
[1746854224450,0.249708,658.92,657.61,0.30413162]
[1746854224844,0.249708,658.91,657.61,0.30413162]
[1746854225252,0.249708,658.9,657.61,0.30413162]
[1746854225651,0.249708,658.89,657.61,0.30413162]
[1746854225951,0.249708,658.88,657.61,0.30413162]
[1746854226252,0.249708,658.87,657.61,0.30413162]
[1746854226646,0.249708,658.86,657.61,0.30413162]
[1746854227246,0.249708,658.85,657.61,0.30413162]
[1746854227649,0.249708,658.84,657.61,0.30413162]
[1746854227850,0.51413363,658.84,657.61,0.30413162]
[1746854228155,0.249708,658.83,657.61,0.30413162]
[1746854228649,0.249708,658.82,657.61,0.30413162]
[1746854229151,0.249708,658.81,657.61,0.30413162]
[1746854229753,0.249708,658.8,657.61,0.30413162]
[1746854230152,0.249708,658.79,657.61,0.30413162]
[1746854230752,0.5141678,658.78,657.61,0.30413162]
[1746854231055,0.249708,658.77,657.61,0.30413162]
[1746854231449,0.249708,658.76,657.61,0.30413162]
[1746854231953,0.249708,658.75,657.61,0.30413162]
[1746854232449,0.249708,658.74,657.61,0.30413162]
[1746854232849,0.249708,658.73,657.61,0.30413162]
[1746854233255,0.249708,658.72,657.61,0.30413162]
[1746854233656,0.249708,658.71,657.61,0.30413162]
[1746854233957,0.249708,658.7,657.61,0.30413162]
[1746854234257,0.249708,658.69,657.61,0.30413162]
[1746854234551,0.249708,658.68,657.61,0.30413162]
[1746854234954,0.249708,658.67,657.61,0.30413162]
[1746854235451,0.249708,658.66,657.61,0.30413162]
[1746854235751,0.249708,658.65,657.61,0.30413162]
[1746854236056,0.249708,658.64,657.61,0.30413162]
[1746854236454,0.249708,658.63,657.61,0.30413162]
[1746854236856,0.249708,658.62,657.61,0.30413162]
[1746854237254,0.249708,658.61,657.61,0.30413162]
[1746854237659,0.249708,658.6,657.61,0.30413162]
[1746854238056,0.249708,658.59,657.61,0.30413162]
[1746854238356,0.249708,658.58,657.61,0.30413162]
[1746854238659,0.249708,658.57,657.61,0.30413162]
[1746854239058,0.249708,658.56,657.61,0.30413162]
[1746854239553,0.249708,658.55,657.61,0.30413162]
[1746854240053,0.51422106,658.55,657.61,0.30413162]
[1746854240652,0.249708,658.54,657.61,0.30413162]
[1746854241355,0.249708,658.53,657.62,0.532]
[1746854241653,0.249708,658.52,657.62,0.532]
[1746854242159,0.249708,658.51,657.62,0.532]
[1746854242558,0.249708,658.5,657.62,0.532]
[1746854242863,0.249708,658.49,657.62,0.532]
[1746854243161,0.249708,658.48,657.62,0.532]
[1746854243460,0.249708,658.47,657.62,0.532]
[1746854243963,0.249708,658.46,657.62,0.532]
[1746854244462,0.249708,658.45,657.62,0.532]
[1746854244664,0.249708,658.44,657.62,0.532]
[1746854245062,0.249708,658.43,657.62,0.532]
[1746854245562,0.249708,658.42,657.62,0.532]
[1746854245862,0.5142281,658.42,657.62,0.532]
[1746854246270,0.249708,658.41,657.62,0.532]
[1746854246565,0.249708,658.4,657.62,0.532]
[1746854247059,0.249708,658.39,657.62,0.532]
[1746854247361,0.249708,658.38,657.62,0.532]
[1746854247663,0.249708,658.37,657.62,0.532]
[1746854248365,0.249708,658.36,657.62,0.532]
[1746854248867,0.249708,658.35,657.62,0.532]
[1746854249166,0.249708,658.34,657.62,0.532]
[1746854250170,0.249708,658.33,657.62,0.532]
[1746854250573,0.249708,658.32,657.62,0.532]
[1746854250871,0.26453518,658.35,657.62,0.532]
[1746854251174,0.24986516,658.34,657.63,0.30412237]
[1746854252170,0.24986516,658.59,657.63,0.30412237]
[1746854252466,0.26451709,658.33,657.63,0.30412237]
[1746854252671,0.24986516,658.58,657.63,0.30412237]
[1746854253470,0.24986516,658.57,657.63,0.30412237]
[1746854253670,0.51436918,658.57,657.63,0.30412237]
[1746854253872,0.24986516,658.56,657.63,0.30412237]
[1746854254371,0.24986516,658.55,657.63,0.30412237]
[1746854254676,0.24986516,658.54,657.63,0.30412237]
[1746854254974,0.26447185,658.54,657.63,0.30412237]
[1746854255474,0.24986516,658.53,657.63,0.30412237]
[1746854256472,0.24986516,658.53,657.64,0.574]
[1746854256675,0.24986516,658.53,657.66,0.3041085]
[1746854258375,0.24986516,658.89,657.66,0.3041085]
[1746854258777,0.26441659,658.52,657.66,0.3041085]
[1746854258976,0.24986516,658.89,657.66,0.3041085]
[1746854259176,0.24986516,658.88,657.66,0.3041085]
[1746854259577,0.24986516,658.87,657.66,0.3041085]
[1746854259979,0.24986516,658.86,657.66,0.3041085]
[1746854260278,1.93745811,659.11,657.66,0.3041085]
[1746854260478,0.26438345,658.86,657.66,0.3041085]
[1746854260875,0.25010339,659.1,657.66,0.3041085]
[1746854261179,0.25010339,658.85,657.66,0.3041085]
[1746854261679,0.25010339,659.09,657.66,0.3041085]
[1746854261874,0.25010339,658.84,657.66,0.3041085]
[1746854262379,0.25010339,658.83,657.66,0.3041085]
[1746854262677,0.25010339,658.82,657.66,0.3041085]
[1746854263075,0.25010339,658.81,657.66,0.3041085]
[1746854263380,0.25010339,658.8,657.66,0.3041085]
[1746854263781,0.51448684,658.79,657.66,0.3041085]
[1746854264480,0.25010339,658.78,657.66,0.3041085]
[1746854265083,0.25010339,658.77,657.66,0.3041085]
[1746854265477,0.25010339,658.78,657.66,0.3041085]
[1746854265980,0.25010339,658.77,657.66,0.3041085]
[1746854266381,0.25010339,658.78,657.66,0.3041085]
[1746854266876,0.51449085,658.77,657.66,0.3041085]
[1746854267081,0.25010339,658.76,657.66,0.3041085]
[1746854269781,0.26436437,658.75,657.66,0.3041085]
[1746854270782,0.25010339,658.74,657.66,0.3041085]
[1746854272784,0.26439349,658.73,657.66,0.3041085]
[1746854273085,0.25010339,658.72,657.66,0.3041085]
[1746854274485,0.25010339,658.71,657.66,0.3041085]
[1746854274884,0.25010339,658.7,657.66,0.3041085]
[1746854275985,0.51449387,658.69,657.66,0.3041085]
[1746854276487,0.25010339,658.68,657.66,0.3041085]
[1746854276987,0.25010339,658.67,657.66,0.3041085]
[1746854277386,0.25010339,658.66,657.66,0.3041085]
[1746854277686,0.25010339,658.65,657.66,0.3041085]
[1746854278085,0.25010339,658.64,657.66,0.3041085]
[1746854278783,0.25010339,658.63,657.66,0.3041085]
[1746854278983,0.51450893,658.63,657.66,0.3041085]
[1746854279187,0.25010339,658.62,657.66,0.3041085]
[1746854279487,0.25010339,658.61,657.66,0.3041085]
[1746854279689,0.25010339,658.6,657.66,0.3041085]
[1746854280084,0.25010339,658.59,657.66,0.3041085]
[1746854280487,0.25010339,658.62,657.66,0.3041085]
[1746854280887,0.25010339,658.61,657.66,0.3041085]
[1746854281288,0.25010339,658.62,657.66,0.3041085]
[1746854281590,0.25010339,658.61,657.66,0.3041085]
[1746854281891,0.25010339,658.6,657.66,0.3041085]
[1746854282291,0.25010339,658.59,657.66,0.3041085]
[1746854282586,0.25010339,658.58,657.66,0.3041085]
[1746854282991,0.25010339,658.57,657.66,0.3041085]
[1746854283387,0.25010339,658.62,657.66,0.3041085]
[1746854284295,0.25010339,658.62,657.67,0.56]
[1746854284496,0.25010339,658.87,657.67,0.56]
[1746854284995,0.2643955,658.86,657.67,0.56]
[1746854285500,0.25010339,658.85,657.69,0.30409463]
[1746854287801,0.26434629,658.84,657.69,0.30409463]
[1746854288101,0.25010339,658.83,657.69,0.30409463]
[1746854289198,0.26434629,658.84,657.69,0.30409463]
[1746854289502,0.25063415,658.83,657.69,0.30409463]
[1746854292807,0.25063415,658.82,657.69,0.30409463]
[1746854293208,0.25063415,658.81,657.69,0.30409463]
[1746854293707,0.25063415,658.8,657.69,0.30409463]
[1746854293907,0.51500454,658.8,657.69,0.30409463]
[1746854294107,0.25063415,658.79,657.69,0.30409463]
[1746854294307,0.25063415,658.78,657.69,0.30409463]
[1746854294602,0.25063415,658.77,657.69,0.30409463]
[1746854295009,0.25063415,658.76,657.69,0.30409463]
[1746854295504,0.25063415,658.75,657.69,0.30409463]
[1746854296004,0.25063415,658.74,657.69,0.30409463]
[1746854296304,0.25063415,658.73,657.69,0.30409463]
[1746854296809,0.5150417,658.72,657.69,0.30409463]
[1746854297008,0.25063415,658.71,657.69,0.30409463]
[1746854297403,0.25063415,658.7,657.69,0.30409463]
[1746854297706,0.25063415,658.69,657.69,0.30409463]
[1746854298310,0.25063415,658.68,657.69,0.30409463]
[1746854299510,0.25063415,658.71,657.69,0.30409463]
[1746854299706,0.26439048,658.67,657.69,0.30409463]
[1746854300210,0.25063415,658.66,657.69,0.30409463]
[1746854300406,0.25063415,658.66,657.7,0.475]
[1746854300606,0.25063415,658.66,657.72,0.30408076]
[1746854300907,0.26439048,658.67,657.72,0.30408076]
[1746854301312,0.26439048,658.67,657.73,0.97438295]
[1746854301612,0.26439048,658.67,657.74,1.27830688]
[1746854301813,0.26439048,658.67,657.75,1.2775764]
[1746854302114,0.26439048,658.67,657.76,0.97365247]
[1746854302407,0.26439048,658.67,657.77,1.2775764]
[1746854302608,0.26439048,658.67,657.78,1.27797709]
[1746854302814,0.26439048,658.67,657.79,0.97405539]
[1746854303008,0.26439048,658.67,657.8,0.97405539]
[1746854303209,0.26439048,658.67,657.81,1.53830458]
[1746854303410,0.26439048,658.67,657.82,2.52089833]
[1746854303614,1.93745811,659.33,657.83,1.54684294]
[1746854303911,0.26424292,658.76,657.84,1.85076687]
[1746854304114,0.25042156,659.32,657.84,1.85076687]
[1746854304115,0.25042156,659.32,657.85,1.54684294]
[1746854304315,0.25042156,659.32,657.86,1.54684294]
[1746854304514,1.93745811,659.33,657.87,1.54684294]
[1746854304709,1.93745811,659.33,657.88,1.85076687]
[1746854304913,1.93745811,659.33,657.89,1.54684294]
[1746854305113,0.51460891,659.32,657.9,1.54684294]
[1746854305313,0.25038505,659.31,657.91,1.54684294]
[1746854305514,0.25038505,659.31,657.92,1.54684294]
[1746854305715,0.25038505,659.31,657.93,1.54684294]
[1746854306013,0.25038505,659.31,657.94,1.84969441]
[1746854306211,0.25038505,659.31,657.95,1.54382986]
[1746854306414,0.25038505,659.31,657.96,1.54382986]
[1746854306714,0.25038505,659.31,657.98,0.3039606]
[1746854307016,0.25038505,659.31,657.99,1.8464236]
[1746854307215,0.25038505,659.31,658.0,1.54249967]
[1746854307414,0.25038505,659.31,658.01,1.54249967]
[1746854307608,0.25038505,659.31,658.02,1.54249967]
[1746854307810,0.25038505,659.31,658.03,1.54249967]
[1746854308117,0.25038505,659.31,658.04,1.28370274]
[1746854308314,0.25038505,659.31,658.05,0.97977881]
[1746854308612,0.25038505,659.31,658.06,0.97889373]
[1746854308814,0.25038505,659.31,658.07,1.28271264]
[1746854309014,0.25038505,659.31,658.07,0.30392393]
[1746854309416,0.25038505,659.31,658.09,0.30390979]
[1746854310111,0.25038505,659.31,658.1,0.97843222]
[1746854310418,0.25038505,659.31,658.12,0.30389594]
[1746854311819,0.26419177,659.3,658.12,0.30389594]
[1746854312316,0.25038505,659.29,658.12,0.30389594]
[1746854314719,0.25038505,659.36,658.12,0.30389594]